[Event "Titled Tuesday Blitz February 28 Early 2023"]
[White "Sattarov, Bobir"]
[Black "Makarian, Rudik"]
[WhiteFideId "14203081"]
[BlackFideId "44105681"]
[WhiteElo "2351"]
[BlackElo "2419"]
[Result "0-1"]
[Round "07"]
[TimeControl "180+2"]
[Date "2023.02.28"]
[WhiteClock "0:00:03"]
[BlackClock "0:00:04"]

1. e4 {[%clk 0:03:00]}  c5 {[%clk 0:02:59]} 2. Nf3 {[%clk 0:03:01]}  Nc6 {[%clk 0:03:00]} 3. d4 {[%clk 0:03:01]}  cxd4 {[%clk 0:03:01]} 4. Nxd4 {[%clk 0:03:01]}  e6 {[%clk 0:03:01]} 5. Bf4 {[%clk 0:03:01]}  d6 {[%clk 0:03:00]} 6. Nxc6 {[%clk 0:03:00]}  bxc6 {[%clk 0:03:01]} 7. c4 {[%clk 0:03:01]}  e5 {[%clk 0:02:55]} 8. Be3 {[%clk 0:03:00]}  f5 {[%clk 0:02:53]} 9. exf5 {[%clk 0:02:59]}  Nf6 {[%clk 0:02:52]} 10. Nc3 {[%clk 0:02:57]}  Bxf5 {[%clk 0:02:51]} 11. Bd3 {[%clk 0:02:57]}  Be6 {[%clk 0:02:45]} 12. O-O {[%clk 0:02:55]}  Be7 {[%clk 0:02:44]} 13. h3 {[%clk 0:02:53]}  O-O {[%clk 0:02:45]} 14. f4 {[%clk 0:02:53]}  exf4 {[%clk 0:02:37]} 15. Bxf4 {[%clk 0:02:53]}  Qd7 {[%clk 0:02:34]} 16. Qc2 {[%clk 0:02:50]}  Bd8 {[%clk 0:02:24]} 17. Rad1 {[%clk 0:02:45]}  Bb6+ {[%clk 0:02:20]} 18. Kh1 {[%clk 0:02:45]}  d5 {[%clk 0:01:57]} 19. cxd5 {[%clk 0:02:43]}  cxd5 {[%clk 0:01:55]} 20. Be5 {[%clk 0:02:39]}  Bc7 {[%clk 0:01:43]} 21. Bxc7 {[%clk 0:02:00]}  Qxc7 {[%clk 0:01:41]} 22. Qa4 {[%clk 0:01:59]}  Nh5 {[%clk 0:01:25]} 23. Ne2 {[%clk 0:01:58]}  Qe5 {[%clk 0:01:14]} 24. Rxf8+ {[%clk 0:01:56]}  Rxf8 {[%clk 0:01:14]} 25. Qd4 {[%clk 0:01:56]}  Ng3+ {[%clk 0:01:07]} 26. Nxg3 {[%clk 0:01:50]}  Qxg3 {[%clk 0:00:59]} 27. Rf1 {[%clk 0:01:20]}  Rc8 {[%clk 0:00:31]} 28. Bf5 {[%clk 0:01:05]}  Qd6 {[%clk 0:00:26]} 29. Bxe6+ {[%clk 0:00:58]}  Qxe6 {[%clk 0:00:27]} 30. Qxa7 {[%clk 0:00:58]}  h6 {[%clk 0:00:25]} 31. Qb7 {[%clk 0:00:54]}  Rc2 {[%clk 0:00:21]} 32. Rd1 {[%clk 0:00:53]}  d4 {[%clk 0:00:10]} 33. Qb8+ {[%clk 0:00:47]}  Kh7 {[%clk 0:00:10]} 34. Rxd4 {[%clk 0:00:46]}  Rc1+ {[%clk 0:00:03]} 35. Kh2 {[%clk 0:00:45]}  Qe3 {[%clk 0:00:04]} 36. Qf4 {[%clk 0:00:39]}  Qg1+ {[%clk 0:00:04]} 37. Kg3 {[%clk 0:00:39]}  Qe1+ {[%clk 0:00:05]} 38. Kh2 {[%clk 0:00:36]}  Qg1+ {[%clk 0:00:04]} 39. Kg3 {[%clk 0:00:37]}  Qe1+ {[%clk 0:00:05]} 40. Qf2 {[%clk 0:00:36]}  Qxf2+ {[%clk 0:00:04]} 41. Kxf2 {[%clk 0:00:35]}  Rc2+ {[%clk 0:00:05]} 42. Kf3 {[%clk 0:00:35]}  Rxb2 {[%clk 0:00:06]} 43. Ra4 {[%clk 0:00:35]}  Kg6 {[%clk 0:00:06]} 44. Ra6+ {[%clk 0:00:34]}  Kf5 {[%clk 0:00:06]} 45. h4 {[%clk 0:00:17]}  h5 {[%clk 0:00:05]} 46. Ra5+ {[%clk 0:00:17]}  Kg6 {[%clk 0:00:06]} 47. g3 {[%clk 0:00:14]}  Kf6 {[%clk 0:00:05]} 48. a3 {[%clk 0:00:13]}  g6 {[%clk 0:00:04]} 49. Ra6+ {[%clk 0:00:12]}  Kf5 {[%clk 0:00:05]} 50. Ra5+ {[%clk 0:00:12]}  Kf6 {[%clk 0:00:05]} 51. Ra8 {[%clk 0:00:09]}  Rb3+ {[%clk 0:00:04]} 52. Kf4 {[%clk 0:00:09]}  Rc3 {[%clk 0:00:05]} 53. Ra6+ {[%clk 0:00:09]}  Kg7 {[%clk 0:00:05]} 54. a4 {[%clk 0:00:07]}  Ra3 {[%clk 0:00:03]} 55. Ra7+ {[%clk 0:00:05]}  Kf6 {[%clk 0:00:03]} 56. Ra6+ {[%clk 0:00:04]}  Kf7 {[%clk 0:00:04]} 57. a5 {[%clk 0:00:04]}  Ra4+ {[%clk 0:00:04]} 58. Ke5 {[%clk 0:00:04]}  Ra3 {[%clk 0:00:04]} 59. Ra7+ {[%clk 0:00:04]}  Kg8 {[%clk 0:00:04]} 60. a6 {[%clk 0:00:04]}  Ra5+ {[%clk 0:00:02]} 61. Kf6 {[%clk 0:00:04]}  Ra3 {[%clk 0:00:02]} 62. Ra8+ {[%clk 0:00:03]}  Kh7 {[%clk 0:00:02]} 63. Ra7+ {[%clk 0:00:03]}  Kg8 {[%clk 0:00:02]} 64. Kxg6 {[%clk 0:00:02]}  Rxg3+ {[%clk 0:00:02]} 65. Kxh5 {[%clk 0:00:03]}  Ra3 {[%clk 0:00:03]} 66. Kg6 {[%clk 0:00:02]}  Rg3+ {[%clk 0:00:03]} 67. Kf5 {[%clk 0:00:02]}  Ra3 {[%clk 0:00:04]} 68. h5 {[%clk 0:00:02]}  Kh8 {[%clk 0:00:04]} 69. h6 {[%clk 0:00:02]}  Ra1 {[%clk 0:00:04]} 70. Ke5 {[%clk 0:00:02]}  Re1+ {[%clk 0:00:04]} 71. Kd5 {[%clk 0:00:02]}  Rd1+ {[%clk 0:00:04]} 72. Kc4 {[%clk 0:00:03]}  Rc1+ {[%clk 0:00:04]} 73. Kb3 {[%clk 0:00:03]}  Rc6 {[%clk 0:00:04]} 0-1


[Site "https://www.chess.com"]

[Event "Titled Tuesday Blitz February 28 Early 2023"]
[White "Mikhailovsky, Vladimir"]
[Black "Kovalenko, Igor"]
[WhiteFideId "34105414"]
[BlackFideId "14117908"]
[WhiteElo "2282"]
[BlackElo "2574"]
[Result "1-0"]
[Round "07"]
[TimeControl "180+2"]
[Date "2023.02.28"]
[WhiteClock "0:00:43"]
[BlackClock "0:01:16"]

1. e4 {[%clk 0:03:00]}  e6 {[%clk 0:02:59]} 2. Qe2 {[%clk 0:02:58]}  c5 {[%clk 0:02:58]} 3. Nf3 {[%clk 0:02:58]}  Nc6 {[%clk 0:02:58]} 4. g3 {[%clk 0:02:58]}  g6 {[%clk 0:02:58]} 5. Bg2 {[%clk 0:02:59]}  Bg7 {[%clk 0:02:58]} 6. O-O {[%clk 0:02:59]}  Nge7 {[%clk 0:02:58]} 7. c3 {[%clk 0:03:00]}  Qc7 {[%clk 0:02:53]} 8. d4 {[%clk 0:02:58]}  cxd4 {[%clk 0:02:53]} 9. cxd4 {[%clk 0:02:59]}  Nxd4 {[%clk 0:02:53]} 10. Nxd4 {[%clk 0:03:00]}  Bxd4 {[%clk 0:02:54]} 11. Bh6 {[%clk 0:02:58]}  Nc6 {[%clk 0:02:52]} 12. Nc3 {[%clk 0:02:56]}  a6 {[%clk 0:02:52]} 13. Rac1 {[%clk 0:02:54]}  d6 {[%clk 0:02:37]} 14. Nd5 {[%clk 0:02:40]}  Qd8 {[%clk 0:02:37]} 15. Qd2 {[%clk 0:02:35]}  Rg8 {[%clk 0:02:18]} 16. Bg5 {[%clk 0:01:37]}  f6 {[%clk 0:02:18]} 17. Rxc6 {[%clk 0:01:38]}  bxc6 {[%clk 0:02:17]} 18. Qxd4 {[%clk 0:01:38]}  exd5 {[%clk 0:02:10]} 19. Bxf6 {[%clk 0:01:36]}  Qc7 {[%clk 0:02:03]} 20. exd5 {[%clk 0:01:35]}  c5 {[%clk 0:02:00]} 21. Re1+ {[%clk 0:01:35]}  Kf8 {[%clk 0:01:57]} 22. Qf4 {[%clk 0:01:33]}  Bf5 {[%clk 0:01:57]} 23. Qh6+ {[%clk 0:01:22]}  Rg7 {[%clk 0:01:56]} 24. Re7 {[%clk 0:01:17]}  Qxe7 {[%clk 0:01:56]} 25. Bxe7+ {[%clk 0:01:17]}  Kg8 {[%clk 0:01:57]} 26. Bxd6 {[%clk 0:01:16]}  Re8 {[%clk 0:01:57]} 27. f4 {[%clk 0:01:14]}  Re1+ {[%clk 0:01:44]} 28. Kf2 {[%clk 0:01:14]}  Rc1 {[%clk 0:01:44]} 29. Qg5 {[%clk 0:01:00]}  Rc2+ {[%clk 0:01:39]} 30. Ke3 {[%clk 0:00:52]}  h5 {[%clk 0:01:30]} 31. Be4 {[%clk 0:00:45]}  Bxe4 {[%clk 0:01:25]} 32. Kxe4 {[%clk 0:00:46]}  Kh7 {[%clk 0:01:22]} 33. Be5 {[%clk 0:00:45]}  Rf7 {[%clk 0:01:17]} 34. Qd8 {[%clk 0:00:45]}  Re2+ {[%clk 0:01:16]} 35. Kd3 {[%clk 0:00:43]} 1-0


[Site "https://www.chess.com"]

[Event "Titled Tuesday Blitz February 28 Early 2023"]
[White "Mahdavi, Reza"]
[Black "Kamsky, Gata"]
[WhiteFideId "12595926"]
[BlackFideId "2000024"]
[WhiteElo "2242"]
[BlackElo "2666"]
[Result "1/2-1/2"]
[Round "07"]
[TimeControl "180+2"]
[Date "2023.02.28"]
[WhiteClock "0:00:07"]
[BlackClock "0:00:02"]

1. Nf3 {[%clk 0:03:00]}  Nf6 {[%clk 0:02:57]} 2. g3 {[%clk 0:02:55]}  g6 {[%clk 0:02:47]} 3. b3 {[%clk 0:02:54]}  Bg7 {[%clk 0:02:46]} 4. Bb2 {[%clk 0:02:54]}  O-O {[%clk 0:02:45]} 5. Bg2 {[%clk 0:02:48]}  d6 {[%clk 0:02:42]} 6. d4 {[%clk 0:02:40]}  Bf5 {[%clk 0:02:37]} 7. O-O {[%clk 0:02:33]}  Qc8 {[%clk 0:02:37]} 8. c4 {[%clk 0:02:31]}  Bh3 {[%clk 0:02:35]} 9. d5 {[%clk 0:02:32]}  Bxg2 {[%clk 0:02:35]} 10. Kxg2 {[%clk 0:02:32]}  c6 {[%clk 0:02:15]} 11. dxc6 {[%clk 0:02:23]}  bxc6 {[%clk 0:02:13]} 12. Nc3 {[%clk 0:02:22]}  Nbd7 {[%clk 0:02:09]} 13. Qc2 {[%clk 0:02:21]}  a5 {[%clk 0:02:09]} 14. Na4 {[%clk 0:02:20]}  Qb7 {[%clk 0:02:06]} 15. c5 {[%clk 0:02:20]}  d5 {[%clk 0:02:03]} 16. Ne5 {[%clk 0:02:15]}  Nxe5 {[%clk 0:01:57]} 17. Bxe5 {[%clk 0:02:16]}  Nd7 {[%clk 0:01:53]} 18. Bxg7 {[%clk 0:02:17]}  Kxg7 {[%clk 0:01:53]} 19. e4 {[%clk 0:02:18]}  Rfc8 {[%clk 0:01:33]} 20. Rac1 {[%clk 0:02:13]}  Qc7 {[%clk 0:00:53]} 21. Rfe1 {[%clk 0:02:02]}  e6 {[%clk 0:00:53]} 22. h4 {[%clk 0:01:58]}  h5 {[%clk 0:00:51]} 23. Red1 {[%clk 0:01:57]}  Rcb8 {[%clk 0:00:51]} 24. a3 {[%clk 0:01:35]}  Kg8 {[%clk 0:00:48]} 25. Qc3 {[%clk 0:01:25]}  Rb5 {[%clk 0:00:45]} 26. exd5 {[%clk 0:01:07]}  cxd5 {[%clk 0:00:37]} 27. c6 {[%clk 0:01:08]}  Ne5 {[%clk 0:00:36]} 28. Re1 {[%clk 0:01:02]}  Ng4 {[%clk 0:00:34]} 29. Qd3 {[%clk 0:00:44]}  Rab8 {[%clk 0:00:25]} 30. Nc5 {[%clk 0:00:43]}  Qxc6 {[%clk 0:00:21]} 31. Nxe6 {[%clk 0:00:41]}  Qd6 {[%clk 0:00:20]} 32. Nd4 {[%clk 0:00:40]}  R5b6 {[%clk 0:00:21]} 33. Re2 {[%clk 0:00:37]}  Qxa3 {[%clk 0:00:19]} 34. Rc7 {[%clk 0:00:34]}  Rf6 {[%clk 0:00:17]} 35. Nc6 {[%clk 0:00:27]}  Rf8 {[%clk 0:00:14]} 36. Ne7+ {[%clk 0:00:26]}  Kg7 {[%clk 0:00:14]} 37. Nxd5 {[%clk 0:00:26]}  Qd6 {[%clk 0:00:12]} 38. Qc4 {[%clk 0:00:20]}  Rf5 {[%clk 0:00:10]} 39. Ne7 {[%clk 0:00:19]}  Rf6 {[%clk 0:00:08]} 40. Nd5 {[%clk 0:00:19]}  Rf5 {[%clk 0:00:08]} 41. Qc3+ {[%clk 0:00:20]}  Kh7 {[%clk 0:00:07]} 42. Ne7 {[%clk 0:00:19]}  Rf6 {[%clk 0:00:06]} 43. Rc6 {[%clk 0:00:17]}  Rxf2+ {[%clk 0:00:05]} 44. Rxf2 {[%clk 0:00:15]}  Qxe7 {[%clk 0:00:06]} 45. Rf3 {[%clk 0:00:12]}  Qe2+ {[%clk 0:00:05]} 46. Kg1 {[%clk 0:00:12]}  Qd1+ {[%clk 0:00:05]} 47. Rf1 {[%clk 0:00:11]}  Qd5 {[%clk 0:00:05]} 48. Rc7 {[%clk 0:00:11]}  Kg8 {[%clk 0:00:03]} 49. Qc4 {[%clk 0:00:09]}  Qe5 {[%clk 0:00:02]} 50. Qf4 {[%clk 0:00:08]}  Qe2 {[%clk 0:00:01]} 51. Rf2 {[%clk 0:00:03]}  Qxf2+ {[%clk 0:00:01]} 52. Qxf2 {[%clk 0:00:04]}  Nxf2 {[%clk 0:00:01]} 53. Kxf2 {[%clk 0:00:05]}  Rb8 {[%clk 0:00:01]} 54. Rc3 {[%clk 0:00:06]}  Rb5 {[%clk 0:00:02]} 55. Kf3 {[%clk 0:00:06]}  Kg7 {[%clk 0:00:03]} 56. Rd3 {[%clk 0:00:07]}  Rb4 {[%clk 0:00:03]} 57. Rc3 {[%clk 0:00:07]}  a4 {[%clk 0:00:03]} 58. bxa4 {[%clk 0:00:08]}  Rxa4 {[%clk 0:00:04]} 59. Rd3 {[%clk 0:00:09]}  f6 {[%clk 0:00:04]} 60. Rd7+ {[%clk 0:00:08]}  Kh6 {[%clk 0:00:04]} 61. Rd3 {[%clk 0:00:09]}  g5 {[%clk 0:00:04]} 62. Rd6 {[%clk 0:00:08]}  g4+ {[%clk 0:00:03]} 63. Kf2 {[%clk 0:00:08]}  Kg6 {[%clk 0:00:03]} 64. Rd2 {[%clk 0:00:08]}  Ra3 {[%clk 0:00:04]} 65. Rb2 {[%clk 0:00:09]}  Rf3+ {[%clk 0:00:04]} 66. Kg2 {[%clk 0:00:08]}  Rd3 {[%clk 0:00:04]} 67. Rc2 {[%clk 0:00:08]}  Kf5 {[%clk 0:00:04]} 68. Rc5+ {[%clk 0:00:08]}  Ke4 {[%clk 0:00:04]} 69. Rc4+ {[%clk 0:00:06]}  Ke3 {[%clk 0:00:04]} 70. Rf4 {[%clk 0:00:06]}  Rd6 {[%clk 0:00:04]} 71. Rf5 {[%clk 0:00:04]}  Ke4 {[%clk 0:00:04]} 72. Rf4+ {[%clk 0:00:04]}  Ke5 {[%clk 0:00:04]} 73. Rf2 {[%clk 0:00:03]}  f5 {[%clk 0:00:05]} 74. Re2+ {[%clk 0:00:04]}  Kf6 {[%clk 0:00:05]} 75. Rf2 {[%clk 0:00:05]}  Rd4 {[%clk 0:00:05]} 76. Rb2 {[%clk 0:00:05]}  f4 {[%clk 0:00:05]} 77. gxf4 {[%clk 0:00:04]}  Rxf4 {[%clk 0:00:04]} 78. Rb6+ {[%clk 0:00:04]}  Kg7 {[%clk 0:00:03]} 79. Rb7+ {[%clk 0:00:05]}  Kg6 {[%clk 0:00:03]} 80. Rb6+ {[%clk 0:00:05]}  Rf6 {[%clk 0:00:03]} 81. Rb5 {[%clk 0:00:06]}  Rf5 {[%clk 0:00:03]} 82. Rb6+ {[%clk 0:00:06]}  Rf6 {[%clk 0:00:03]} 83. Rb5 {[%clk 0:00:07]}  Rf3 {[%clk 0:00:02]} 84. Rb6+ {[%clk 0:00:05]}  Kg7 {[%clk 0:00:03]} 85. Rb7+ {[%clk 0:00:05]}  Kg6 {[%clk 0:00:02]} 86. Rb6+ {[%clk 0:00:06]}  Kg7 {[%clk 0:00:03]} 87. Rb5 {[%clk 0:00:06]}  Kg6 {[%clk 0:00:02]} 88. Rb6+ {[%clk 0:00:07]} 1/2-1/2


[Site "https://www.chess.com"]

[Event "Titled Tuesday Blitz February 28 Early 2023"]
[White "EREBUNI91"]
[Black "Bruzon Batista, Lazaro"]
[BlackFideId "3503739"]
[WhiteElo "2736"]
[BlackElo "2709"]
[Result "0-1"]
[Round "07"]
[TimeControl "180+2"]
[Date "2023.02.28"]
[WhiteClock "0:00:11"]
[BlackClock "0:00:39"]

1. e4 {[%clk 0:03:00]}  e5 {[%clk 0:02:59]} 2. Nf3 {[%clk 0:03:00]}  Nc6 {[%clk 0:03:00]} 3. Bb5 {[%clk 0:02:56]}  Nf6 {[%clk 0:02:59]} 4. O-O {[%clk 0:02:53]}  Nxe4 {[%clk 0:02:59]} 5. Re1 {[%clk 0:02:53]}  Nd6 {[%clk 0:02:58]} 6. Nxe5 {[%clk 0:02:48]}  Be7 {[%clk 0:02:57]} 7. Bf1 {[%clk 0:02:48]}  Nf5 {[%clk 0:02:57]} 8. Nf3 {[%clk 0:02:31]}  O-O {[%clk 0:02:55]} 9. d4 {[%clk 0:02:31]}  d5 {[%clk 0:02:55]} 10. c3 {[%clk 0:02:29]}  Bd6 {[%clk 0:02:55]} 11. Na3 {[%clk 0:02:23]}  Bxa3 {[%clk 0:02:48]} 12. bxa3 {[%clk 0:02:24]}  Nce7 {[%clk 0:02:46]} 13. Bg5 {[%clk 0:02:19]}  f6 {[%clk 0:02:39]} 14. Bf4 {[%clk 0:02:07]}  Ng6 {[%clk 0:02:38]} 15. Bg3 {[%clk 0:02:06]}  c6 {[%clk 0:02:22]} 16. Bd3 {[%clk 0:01:56]}  Rf7 {[%clk 0:01:51]} 17. Qc2 {[%clk 0:01:47]}  Nxg3 {[%clk 0:01:51]} 18. hxg3 {[%clk 0:01:27]}  Nf8 {[%clk 0:01:50]} 19. Rab1 {[%clk 0:01:21]}  g6 {[%clk 0:01:46]} 20. c4 {[%clk 0:01:18]}  Be6 {[%clk 0:01:43]} 21. c5 {[%clk 0:01:13]}  Qa5 {[%clk 0:01:33]} 22. Re3 {[%clk 0:01:06]}  Rd8 {[%clk 0:01:13]} 23. Rbe1 {[%clk 0:01:03]}  Bc8 {[%clk 0:01:10]} 24. Re8 {[%clk 0:00:50]}  Qc7 {[%clk 0:01:08]} 25. R8e3 {[%clk 0:00:40]}  Rdd7 {[%clk 0:01:02]} 26. Qe2 {[%clk 0:00:37]}  Kg7 {[%clk 0:01:00]} 27. Nd2 {[%clk 0:00:33]}  Rd8 {[%clk 0:00:59]} 28. Nf1 {[%clk 0:00:29]}  b6 {[%clk 0:00:57]} 29. Nd2 {[%clk 0:00:26]}  Bd7 {[%clk 0:00:47]} 30. Nb3 {[%clk 0:00:22]}  Qc8 {[%clk 0:00:46]} 31. a4 {[%clk 0:00:17]}  Bf5 {[%clk 0:00:43]} 32. Re7 {[%clk 0:00:14]}  Bxd3 {[%clk 0:00:40]} 33. Rxf7+ {[%clk 0:00:13]}  Kxf7 {[%clk 0:00:40]} 34. Qxd3 {[%clk 0:00:13]}  Ne6 {[%clk 0:00:39]} 35. a5 {[%clk 0:00:11]}  b5 {[%clk 0:00:39]} 0-1


[Site "https://www.chess.com"]

[Event "Titled Tuesday Blitz February 28 Early 2023"]
[White "Rostomyan, Mikayel"]
[Black "Zhigalko, Sergei"]
[WhiteFideId "13313754"]
[BlackFideId "13502956"]
[WhiteElo "2009"]
[BlackElo "2626"]
[Result "0-1"]
[Round "07"]
[TimeControl "180+2"]
[Date "2023.02.28"]
[WhiteClock "0:00:09"]
[BlackClock "0:00:12"]

1. d4 {[%clk 0:03:00]}  Nf6 {[%clk 0:03:00]} 2. Nf3 {[%clk 0:03:00]}  e6 {[%clk 0:03:00]} 3. c4 {[%clk 0:02:58]}  b6 {[%clk 0:03:00]} 4. g3 {[%clk 0:02:57]}  Ba6 {[%clk 0:03:00]} 5. b3 {[%clk 0:02:56]}  Bb4+ {[%clk 0:03:00]} 6. Bd2 {[%clk 0:02:56]}  Be7 {[%clk 0:03:00]} 7. Bg2 {[%clk 0:02:56]}  c6 {[%clk 0:03:00]} 8. O-O {[%clk 0:02:56]}  d5 {[%clk 0:03:01]} 9. Qc2 {[%clk 0:02:50]}  Nbd7 {[%clk 0:03:01]} 10. a4 {[%clk 0:02:44]}  O-O {[%clk 0:02:54]} 11. a5 {[%clk 0:02:43]}  Ne4 {[%clk 0:02:54]} 12. Be1 {[%clk 0:02:40]}  Bd6 {[%clk 0:02:45]} 13. Nbd2 {[%clk 0:02:34]}  f5 {[%clk 0:02:45]} 14. axb6 {[%clk 0:01:40]}  axb6 {[%clk 0:02:44]} 15. Nxe4 {[%clk 0:01:28]}  fxe4 {[%clk 0:02:42]} 16. Nd2 {[%clk 0:01:28]}  Qe7 {[%clk 0:02:27]} 17. f3 {[%clk 0:01:25]}  e3 {[%clk 0:02:08]} 18. Nb1 {[%clk 0:01:24]}  c5 {[%clk 0:02:09]} 19. cxd5 {[%clk 0:01:17]}  cxd4 {[%clk 0:02:07]} 20. dxe6 {[%clk 0:01:12]}  Nc5 {[%clk 0:01:35]} 21. Rxa6 {[%clk 0:00:29]}  Nxa6 {[%clk 0:01:19]} 22. f4 {[%clk 0:00:27]}  Rac8 {[%clk 0:01:14]} 23. Qe4 {[%clk 0:00:27]}  Bc5 {[%clk 0:01:09]} 24. f5 {[%clk 0:00:27]}  Rcd8 {[%clk 0:01:02]} 25. g4 {[%clk 0:00:27]}  Nc7 {[%clk 0:00:41]} 26. Bg3 {[%clk 0:00:26]}  Nd5 {[%clk 0:00:30]} 27. h4 {[%clk 0:00:22]}  Nf6 {[%clk 0:00:18]} 28. Qf3 {[%clk 0:00:21]}  Bd6 {[%clk 0:00:12]} 29. Bxd6 {[%clk 0:00:18]}  Qxd6 {[%clk 0:00:07]} 30. g5 {[%clk 0:00:18]}  Ne8 {[%clk 0:00:04]} 31. Qh5 {[%clk 0:00:13]}  Qe7 {[%clk 0:00:03]} 32. Be4 {[%clk 0:00:13]}  Nd6 {[%clk 0:00:03]} 33. f6 {[%clk 0:00:12]}  gxf6 {[%clk 0:00:02]} 34. gxf6 {[%clk 0:00:11]}  Rxf6 {[%clk 0:00:02]} 35. Rxf6 {[%clk 0:00:11]}  Qg7+ {[%clk 0:00:02]} 36. Qg5 {[%clk 0:00:08]}  Nxe4 {[%clk 0:00:02]} 37. Qxg7+ {[%clk 0:00:06]}  Kxg7 {[%clk 0:00:03]} 38. Rf4 {[%clk 0:00:07]}  Nd2 {[%clk 0:00:02]} 39. Nxd2 {[%clk 0:00:05]}  exd2 {[%clk 0:00:03]} 40. Rf1 {[%clk 0:00:06]}  d3 {[%clk 0:00:03]} 41. exd3 {[%clk 0:00:06]}  Rxd3 {[%clk 0:00:04]} 42. Rd1 {[%clk 0:00:06]}  Kf6 {[%clk 0:00:04]} 43. Kf2 {[%clk 0:00:06]}  Kxe6 {[%clk 0:00:04]} 44. Ke2 {[%clk 0:00:07]}  Rd5 {[%clk 0:00:03]} 45. b4 {[%clk 0:00:02]}  h5 {[%clk 0:00:03]} 46. Ke3 {[%clk 0:00:02]}  Ke5 {[%clk 0:00:03]} 47. b5 {[%clk 0:00:02]}  Kf5 {[%clk 0:00:03]} 48. Kf3 {[%clk 0:00:02]}  Rd3+ {[%clk 0:00:03]} 49. Ke2 {[%clk 0:00:02]}  Ke4 {[%clk 0:00:03]} 50. Ra1 {[%clk 0:00:02]}  d1=Q+ {[%clk 0:00:04]} 51. Rxd1 {[%clk 0:00:02]}  Rxd1 {[%clk 0:00:05]} 52. Kxd1 {[%clk 0:00:03]}  Kd3 {[%clk 0:00:05]} 53. Kc1 {[%clk 0:00:03]}  Kc4 {[%clk 0:00:06]} 54. Kc2 {[%clk 0:00:04]}  Kxb5 {[%clk 0:00:06]} 55. Kb3 {[%clk 0:00:05]}  Kc5 {[%clk 0:00:07]} 56. Kc3 {[%clk 0:00:05]}  Kd5 {[%clk 0:00:07]} 57. Kb4 {[%clk 0:00:05]}  Ke4 {[%clk 0:00:08]} 58. Kb5 {[%clk 0:00:06]}  Kf4 {[%clk 0:00:09]} 59. Kxb6 {[%clk 0:00:07]}  Kg4 {[%clk 0:00:10]} 60. Kc5 {[%clk 0:00:08]}  Kxh4 {[%clk 0:00:11]} 61. Kd4 {[%clk 0:00:08]}  Kg3 {[%clk 0:00:12]} 62. Kd3 {[%clk 0:00:09]}  h4 {[%clk 0:00:12]} 0-1


[Site "https://www.chess.com"]